bitfinex/quotes_SOLUSD_20250903
["timestamp","ask_amount","ask_price","bid_price","bid_amount"]
[1756911197864,11.71905877,212.28,212.25,0.67]
[1756911198063,4.76987189,212.32,212.26,0.67]
[1756911198392,0.06,212.32,212.26,0.67]
[1756911198560,11.71905877,212.31,212.26,0.67]
[1756911199274,0.06,212.32,212.27,11.71905877]
[1756911199459,0.06,212.32,212.25,38.78]
[1756911199460,0.06,212.32,212.29,11.71905877]
[1756911199660,0.06,212.32,212.28,12.38905877]
[1756911199969,0.06,212.32,212.28,0.67]
[1756911200281,11.71905877,212.31,212.25,11.71905877]
[1756911200493,0.06,212.32,212.25,0.67]
[1756911200788,11.71905877,212.3,212.25,0.67]
[1756911200961,11.71905877,212.3,212.24,0.03]
[1756911201164,11.71905877,212.3,212.25,0.67]
[1756911201363,0.06,212.32,212.27,11.71905877]
[1756911201768,11.71905877,212.29,212.24,0.7]
[1756911202085,11.71905877,212.26,212.24,0.03]
[1756911202284,11.71905877,212.27,212.24,0.03]
[1756911202460,11.71905877,212.26,212.24,0.03]
[1756911202666,11.71905877,212.25,212.24,0.03]
[1756911203974,12.05905877,212.25,212.24,0.03]
[1756911204175,16.43048397,212.25,212.24,0.03]
[1756911204372,30.36607798,212.25,212.24,0.03]
[1756911204578,25.31465278,212.24,212.23,1e-08]
[1756911204997,25.65465278,212.24,212.23,1e-08]
[1756911206173,30.02629997,212.24,212.23,1e-08]
[1756911206880,16.43070596,212.24,212.23,1e-08]
[1756911207081,30.02629997,212.24,212.23,1e-08]
[1756911208178,30.36629997,212.24,212.23,1e-08]
[1756911209386,18.3072412,212.24,212.23,1e-08]
[1756911209716,30.02629997,212.24,212.23,1e-08]
[1756911210572,30.36629997,212.24,212.23,1e-08]
[1756911211782,30.02629997,212.24,212.23,1e-08]
[1756911212302,15.48492636,212.27,212.23,1e-08]
[1756911212500,4.71098129,212.27,212.23,0.67000001]
[1756911212705,11.71905877,212.24,212.23,0.67000001]
[1756911212875,37.71905877,212.24,212.23,1e-08]
[1756911213627,11.71905877,212.24,212.23,1e-08]
[1756911213922,25.65465278,212.24,212.23,1e-08]
[1756911214128,25.31465278,212.24,212.23,1e-08]
[1756911214424,30.71164719,212.24,212.23,1e-08]
[1756911214725,56.02629997,212.24,212.23,1e-08]
[1756911215393,56.36629997,212.24,212.23,1e-08]
[1756911215792,56.02629997,212.24,212.23,1e-08]
[1756911216200,56.36629997,212.24,212.23,1e-08]
[1756911217224,56.02629997,212.24,212.23,1e-08]
[1756911217606,56.36629997,212.24,212.23,1e-08]
[1756911217815,39.59559401,212.21,212.2,1e-08]
[1756911217999,51.31465278,212.21,212.2,1e-08]
[1756911218499,56.02696605,212.21,212.2,1e-08]
[1756911219292,56.36696605,212.21,212.2,1e-08]
[1756911219623,13.59559401,212.2,212.18,1e-08]
[1756911219826,11.71905877,212.19,212.18,1e-08]
[1756911220015,25.31465278,212.19,212.18,1e-08]
[1756911220391,30.36741021,212.19,212.18,1e-08]
[1756911221041,39.59559401,212.15,212.05,0.67]
[1756911221315,11.71905877,212.08,212.05,0.67]
[1756911221935,11.71905877,212.09,212.05,0.67]
[1756911222303,11.71905877,212.1,212.05,0.67]
[1756911222504,37.71905877,212.11,212.05,12.38905877]
[1756911222733,26.0,212.11,212.06,0.67]
[1756911223027,11.71905877,212.13,212.06,0.67]
[1756911223200,11.71905877,212.13,212.07,11.71905877]
[1756911223406,11.71905877,212.13,212.08,0.67]
[1756911224105,26.0,212.15,212.08,0.67]
[1756911224531,11.71905877,212.13,212.08,0.67]
[1756911224710,11.71905877,212.11,212.08,0.67]
[1756911224919,11.71905877,212.09,212.08,0.67]
[1756911225105,26.0,212.1,212.08,0.67]
[1756911225313,11.71905877,212.09,212.08,0.67]
[1756911225507,11.71905877,212.09,212.01,4.81673112]
[1756911225724,11.71905877,212.09,212.04,12.38905877]
[1756911225905,11.71905877,212.09,212.05,0.67]
[1756911226241,11.71905877,212.08,212.06,0.67]
[1756911226534,4.71564651,212.06,212.04,0.67]
[1756911227052,4.71564651,212.06,212.05,0.67]
[1756911227211,11.71905877,212.08,212.05,0.67]
[1756911227528,7.93741364,212.08,212.05,0.67]
[1756911227826,7.93741364,212.07,212.05,0.67]
[1756911228210,7.93741364,212.08,212.06,0.67]
[1756911228423,11.78619589,212.12,212.06,0.67]
[1756911228424,12.65283779,212.07,212.06,0.67]
[1756911228635,12.65283779,212.07,212.03,0.67]
[1756911228827,7.93741364,212.05,212.01,0.1]
[1756911229216,7.93741364,212.04,212.02,0.67]
[1756911229421,7.93741364,212.05,212.02,0.67]
[1756911229630,33.93741364,212.04,212.02,0.67]
[1756911230545,38.6536182,212.04,212.02,0.67]
[1756911230747,33.93741364,212.04,212.02,0.67]
[1756911231040,26.0,212.05,212.03,0.67]
[1756911231252,26.0,212.04,212.01,8.03741364]
[1756911231547,26.0,212.04,212.01,0.1]
[1756911231738,26.0,212.04,212.02,0.67]
[1756911231950,26.0,212.04,212.03,0.67]
[1756911232245,7.93741364,212.06,212.03,0.67]
[1756911232422,26.0,212.04,212.03,0.67]
[1756911232624,7.93741364,212.07,212.04,0.67]
[1756911232823,26.0,212.06,212.05,0.67]
[1756911233846,29.26590701,212.06,212.02,0.67]
[1756911234047,29.26590701,212.06,212.01,38.76]
[1756911234048,3.26590701,212.05,212.01,38.76]
[1756911234348,3.26590701,212.05,212.03,0.67]
[1756911234648,4.7160913,212.04,212.02,0.67]
[1756911234824,26.0,212.06,212.03,0.67]
[1756911235025,26.0,212.06,212.04,0.67]
[1756911235324,26.0,212.06,212.05,0.67]
[1756911236141,30.71564651,212.06,212.05,0.67]
[1756911236533,26.0,212.06,212.05,0.67]
[1756911236831,30.71564651,212.06,212.02,38.66]
[1756911237035,26.0,212.06,212.03,0.67]
[1756911237351,26.0,212.06,212.04,0.67]
[1756911237749,3.26590701,212.05,212.02,0.67]
[1756911238339,3.26590701,212.05,212.03,0.67]
[1756911238829,4.71596405,212.05,212.01,0.1]
[1756911239030,4.71596405,212.05,212.02,0.67]
[1756911239231,7.98187106,212.05,212.01,0.1]
[1756911239635,3.26590701,212.03,212.01,0.1]
[1756911240028,29.26590701,212.02,212.01,0.1]
[1756911240449,26.0,212.04,212.01,0.77]
[1756911240662,26.0,212.04,212.02,0.67]
[1756911240848,3.26590701,212.06,212.02,0.67]
[1756911241034,26.0,212.07,212.03,0.67]
[1756911241234,26.0,212.07,212.04,0.67]
[1756911241535,26.0,212.07,212.02,3.26590701]
[1756911241536,3.26590701,212.07,212.02,0.67]
[1756911241937,16.86150102,212.13,212.03,0.67]
[1756911242132,3.26590701,212.1,212.04,3.26590701]
[1756911242447,3.26590701,212.08,212.04,0.67]
[1756911242750,7.98106992,212.09,212.05,0.67]
[1756911243433,7.93691412,212.09,212.05,0.67]
[1756911243659,26.0,212.07,212.06,0.67]
[1756911243870,26.0,212.07,212.05,7.93691412]
[1756911244458,7.93691412,212.11,212.06,0.67]
[1756911244459,26.0,212.08,212.06,0.67]
[1756911244773,133.74,212.15,212.08,4.71520181]
[1756911244774,133.4,212.15,212.08,4.71520181]
[1756911245058,7.93691412,212.14,212.09,0.67]
[1756911245264,7.93691412,212.13,212.09,0.67]
[1756911245455,7.93691412,212.12,212.08,38.62]
[1756911245636,7.93691412,212.1,212.05,0.67]
[1756911246033,7.93691412,212.09,212.05,0.67]
[1756911246237,33.93691412,212.1,212.03,7.93691412]
[1756911246455,33.93691412,212.1,212.05,0.67]
[1756911246649,33.93691412,212.1,212.03,7.93691412]
[1756911246846,33.93691412,212.1,212.05,0.67]
[1756911247048,33.93691412,212.1,212.06,0.67]
[1756911247252,30.71487823,212.1,212.06,0.67]
[1756911247452,30.71487823,212.1,212.04,7.93691412]
[1756911247654,38.65179235,212.1,212.04,8.60691412]
[1756911248046,30.71487823,212.1,212.04,0.67]
[1756911248243,7.93691412,212.08,212.04,0.67]
[1756911248456,7.93691412,212.09,212.04,0.67]
[1756911248638,7.93691412,212.09,212.05,0.67]
[1756911248844,38.65179235,212.1,212.05,0.67]
[1756911249062,26.0,212.1,212.06,0.67]
[1756911249247,30.71483452,212.1,212.06,0.67]
[1756911249460,7.93691412,212.09,212.03,47.20691412]
[1756911250264,26.0,212.08,212.07,7.93691412]
[1756911250461,133.4,212.17,212.07,0.67]
[1756911250642,7.93691412,212.15,212.09,7.93691412]
[1756911250842,33.93691412,212.13,212.07,0.67]
[1756911251154,12.65122677,212.12,212.07,0.67]
[1756911251773,26.0,212.1,212.05,39.32]
[1756911251956,26.0,212.1,212.06,0.72]
[1756911252144,26.0,212.09,212.06,0.72]
[1756911252352,26.0,212.09,212.05,46.53691412]
[1756911252549,26.0,212.09,212.07,0.72]
[1756911252751,26.0,212.09,212.05,7.93691412]
[1756911252964,4.71508473,212.09,212.05,0.72]
[1756911253147,4.71508473,212.09,212.04,46.53691412]
[1756911253354,4.71508473,212.09,212.05,0.72]
[1756911253553,26.0,212.09,212.05,0.72]
[1756911254260,26.0,212.13,212.06,0.72]
[1756911254581,7.93691412,212.11,212.06,0.72]
[1756911255264,30.71417666,212.13,212.05,7.93691412]
[1756911255462,7.93691412,212.11,212.07,0.72]
[1756911256055,14.17735875,212.14,212.09,7.93691412]
[1756911256262,14.17735875,212.14,212.08,0.72]
[1756911256263,12.6508498,212.14,212.08,7.93691412]
[1756911256455,7.93691412,212.12,212.07,0.72]
[1756911257050,7.93691412,212.11,212.07,0.72]
[1756911257249,4.71475719,212.1,212.07,0.72]
[1756911257451,7.93691412,212.09,212.04,0.72]
[1756911257763,7.93691412,212.08,212.03,38.58]
[1756911257965,7.93691412,212.07,212.03,38.58]
[1756911258166,7.93691412,212.06,212.01,0.1]
[1756911258354,7.93691412,212.05,212.02,38.56]
[1756911258675,26.0,212.07,212.01,38.66]
[1756911258878,7.93691412,212.06,212.02,0.72]
[1756911259371,12.65256152,212.06,212.01,0.1]
[1756911259570,12.65256152,212.06,212.02,0.72]
[1756911259950,26.0,212.07,212.03,0.72]
[1756911260152,7.93691412,212.08,212.01,39.38]
[1756911260352,26.0,212.04,212.01,39.38]
[1756911260575,26.0,212.04,212.02,0.72]
[1756911260779,26.0,212.04,212.03,0.72]
[1756911261482,26.0,212.05,212.03,8.65691412]
[1756911261676,26.0,212.05,212.04,0.72]
[1756911261990,7.93691412,212.06,212.01,0.82]
[1756911262155,26.0,212.04,212.03,38.56]
[1756911262871,26.0,212.04,212.01,0.82]
[1756911263469,4.71592709,212.05,212.02,38.56]
[1756911263984,4.71592709,212.05,212.02,39.28]
[1756911264278,7.98229587,212.05,212.02,39.26]
[1756911265362,4.71592709,212.05,212.02,39.26]
[1756911265559,7.98206036,212.06,212.02,0.72]
[1756911265765,26.0,212.08,212.03,39.26]
[1756911265969,33.98168779,212.08,212.03,39.26]
[1756911266180,33.98168779,212.08,212.04,0.72]
[1756911266881,33.98168779,212.08,212.03,38.54]
[1756911267099,33.98168779,212.08,212.03,39.26]
[1756911267264,7.98193855,212.07,212.03,39.26]
[1756911267686,26.0,212.04,212.03,39.26]
[1756911268187,4.71556977,212.07,212.03,39.26]
[1756911268188,33.98193855,212.07,212.03,39.26]
[1756911268484,33.98193855,212.07,212.04,0.72]
[1756911268687,30.71556977,212.07,212.03,38.54]
[1756911268880,30.71556977,212.07,212.04,0.72]
[1756911269067,33.98193855,212.07,212.04,0.72]
[1756911269494,29.26636878,212.07,212.04,0.72]
[1756911269678,33.9817931,212.07,212.03,38.54]
[1756911269869,26.0,212.04,212.03,39.26]
[1756911270071,26.0,212.04,212.03,38.54]
[1756911270589,26.0,212.04,212.02,38.52]
[1756911270783,26.0,212.04,212.03,38.52]
[1756911271400,3.26636878,212.06,212.03,39.24]
[1756911271566,26.0,212.04,212.03,39.24]
[1756911271771,29.26636878,212.06,212.03,39.24]
[1756911271972,26.0,212.06,212.03,39.24]
[1756911272181,26.0,212.06,212.04,0.72]
[1756911272672,30.7153776,212.08,212.03,38.52]
[1756911272877,33.98174638,212.08,212.04,0.72]
[1756911273184,3.26636878,212.09,212.05,0.72]
[1756911273365,26.0,212.08,212.06,0.72]
[1756911273571,26.0,212.08,212.04,0.72]
[1756911273772,29.26636878,212.07,212.04,0.72]
[1756911273990,26.0,212.07,212.04,0.72]
[1756911274166,29.26636878,212.07,212.04,0.72]
[1756911274366,3.26636878,212.06,212.01,0.82]
[1756911274595,4.71564651,212.06,212.02,0.72]
[1756911274791,26.0,212.04,212.03,38.5]
[1756911274999,29.26636878,212.04,212.03,38.5]
[1756911275169,26.0,212.04,212.03,38.5]
[1756911275675,26.0,212.04,212.03,39.22]
[1756911275903,26.0,212.04,212.03,38.5]
[1756911276077,26.0,212.04,212.03,39.22]
[1756911276888,4.71550706,212.07,212.03,39.22]
[1756911277111,7.98187584,212.07,212.03,39.22]
[1756911277294,7.98187584,212.07,212.03,38.5]
[1756911277475,30.71525235,212.08,212.04,0.72]
[1756911277676,33.98162113,212.08,212.04,0.72]
[1756911277989,3.26636878,212.07,212.04,0.72]
[1756911278188,3.26636878,212.07,212.03,38.5]
[1756911278373,30.71525235,212.08,212.03,39.22]
[1756911278576,3.26636878,212.06,212.03,0.72]
[1756911278783,26.0,212.04,212.03,39.22]
[1756911279186,26.0,212.04,212.03,38.5]
[1756911279381,26.0,212.04,212.03,39.22]
[1756911280091,26.0,212.04,212.01,0.1]
[1756911280396,26.0,212.04,212.03,38.48]
[1756911280796,30.7160913,212.04,212.03,38.48]
[1756911280999,7.98228352,212.05,212.03,38.48]
[1756911281992,3.26636878,212.05,212.03,39.2]
[1756911282376,26.0,212.07,212.03,39.23]
[1756911282776,4.71566708,212.06,212.03,39.23]
[1756911282978,4.71566708,212.06,212.03,38.51]
[1756911283291,30.71548193,212.07,212.04,0.72]
[1756911283497,29.26636878,212.07,212.05,0.72]
[1756911283997,3.26636878,212.07,212.05,0.72]
[1756911284372,30.71528379,212.08,212.03,38.51]
[1756911284577,33.98165257,212.08,212.04,0.72]
[1756911284877,30.71528379,212.08,212.05,0.72]
[1756911285077,3.26636878,212.07,212.05,0.72]
[1756911285310,26.0,212.08,212.06,0.72]
[1756911285606,136.66636878,212.11,212.03,43.22624705]
[1756911285791,3.26636878,212.08,212.04,0.72]
[1756911286094,26.0,212.08,212.05,0.72]
[1756911286274,26.0,212.08,212.06,38.46]
[1756911286475,26.0,212.08,212.06,39.18]
[1756911287505,26.0,212.08,212.07,0.72]
[1756911289584,26.0,212.08,212.06,38.46]
[1756911289901,31.10201085,212.08,212.06,38.46]
[1756911290108,30.71522759,212.08,212.06,39.18]
[1756911290278,5.10201085,212.07,212.06,38.46]
[1756911290701,30.71522759,212.08,212.06,38.46]
[1756911290880,5.10201085,212.07,212.04,0.72]
[1756911291192,5.10201085,212.06,212.03,0.03]
[1756911291501,5.10201085,212.04,212.03,38.47]
[1756911292383,5.10201085,212.04,212.03,0.03]
[1756911292782,30.71592206,212.05,212.03,0.03]
[1756911292994,31.44201085,212.04,212.03,0.03]
[1756911293581,54.85570701,212.04,212.03,0.03]
[1756911295080,49.41369616,212.04,212.03,0.03]
[1756911295281,31.10201085,212.04,212.03,0.03]
[1756911295480,5.10201085,212.04,212.03,0.03]
[1756911295680,9.81810215,212.04,212.03,0.03]
[1756911296304,42.39180611,212.1,212.03,0.03]
[1756911296305,18.3103512,212.1,212.03,0.75]
[1756911296605,26.0,212.07,212.03,0.75]
[1756911296782,5.10201085,212.06,212.03,0.75]
[1756911296982,31.10201085,212.06,212.04,0.72]
[1756911297716,5.10201085,212.09,212.03,5.13201085]
[1756911297905,4.71475719,212.1,212.03,5.13201085]
[1756911297906,30.71475719,212.1,212.03,5.13201085]
[1756911298084,5.10201085,212.08,212.03,0.03]
[1756911298281,5.10201085,212.08,212.04,0.72]
[1756911298685,26.0,212.06,212.05,0.72]
[1756911299111,26.0,212.06,212.03,0.03]
[1756911299415,26.0,212.06,212.05,0.72]
[1756911299628,4.71475719,212.1,212.05,0.72]
[1756911299629,5.10201085,212.11,212.05,5.82201085]
[1756911299786,5.10201085,212.07,212.03,0.75]
[1756911299984,26.0,212.05,212.04,39.14]
[1756911300386,26.0,212.05,212.03,38.45]
[1756911300585,5.10201085,212.06,212.03,39.17]
[1756911300791,0.34,212.09,212.03,39.17]
[1756911301116,5.10201085,212.07,212.03,39.17]
[1756911301616,9.81787974,212.05,212.03,0.03]
[1756911301796,35.81787974,212.05,212.03,0.03]
[1756911301997,5.10201085,212.04,212.03,0.03]
[1756911302192,26.0,212.04,212.03,0.03]
[1756911303014,26.0,212.05,212.03,5.85201085]
[1756911303213,26.0,212.05,212.04,5.82201085]
[1756911303392,26.0,212.05,212.04,0.72]
[1756911303596,26.0,212.05,212.04,5.82201085]
[1756911303791,5.10201085,212.1,212.04,5.82201085]
[1756911304002,26.0,212.07,212.05,0.72]
[1756911304187,26.0,212.07,212.06,0.72]
[1756911304391,5.10201085,212.1,212.06,0.72]
[1756911304587,5.10201085,212.11,212.07,0.72]
[1756911304823,9.81636481,212.12,212.08,0.72]
[1756911304994,9.07228882,212.17,212.09,5.82201085]
[1756911305196,4.77298541,212.18,212.11,5.10201085]
[1756911305504,26.0,212.14,212.12,39.12]
[1756911305713,5.10201085,212.17,212.13,0.72]
[1756911305917,0.06,212.18,212.14,0.72]
[1756911306102,5.16201085,212.18,212.15,0.72]
[1756911306295,0.06,212.18,212.14,5.10201085]
[1756911306606,5.16201085,212.18,212.14,39.12]
[1756911306805,0.06,212.18,212.15,0.72]
[1756911307209,0.06,212.18,212.16,0.72]
[1756911307722,0.06,212.18,212.14,38.4]
[1756911307723,26.0,212.17,212.14,38.4]
[1756911307893,5.10201085,212.16,212.11,5.10201085]
[1756911308094,5.10201085,212.14,212.12,38.38]
[1756911308307,26.0,212.17,212.13,0.72]
[1756911308507,26.0,212.15,212.14,0.72]
[1756911308923,0.06,212.18,212.13,0.72]
[1756911309119,26.06,212.18,212.14,0.72]
[1756911309307,26.06,212.18,212.15,0.72]
[1756911309308,5.16201085,212.18,212.15,0.72]
[1756911310021,5.16201085,212.18,212.14,38.38]
[1756911310022,0.06,212.18,212.16,5.82201085]
[1756911310317,0.06,212.18,212.17,0.72]
[1756911311112,0.06,212.18,212.17,5.82201085]
[1756911311316,0.06,212.18,212.17,0.72]
[1756911311814,0.06,212.18,212.17,44.18201085]
[1756911312203,0.06,212.18,212.17,5.82201085]
[1756911312515,0.06,212.18,212.17,48.89521252]
[1756911313193,0.06,212.18,212.17,62.49080653]
[1756911314802,0.06,212.21,212.19,0.28432314]
[1756911315099,0.06,212.21,212.2,14.26559401]
[1756911315318,0.06,212.21,212.2,39.01]
[1756911315713,0.06,212.21,212.2,44.11201085]
[1756911316023,0.06,212.21,212.2,48.82454619]
[1756911316320,0.06,212.21,212.2,44.11201085]
[1756911316616,0.06,212.21,212.2,39.01]
[1756911316823,0.06,212.21,212.2,44.11201085]
[1756911317413,0.06,212.21,212.2,5.77201085]
[1756911317620,0.06,212.21,212.2,44.11201085]
[1756911317922,0.06,212.21,212.18,5.77201085]
[1756911318108,0.06,212.21,212.2,38.34]
[1756911318307,0.06,212.21,212.15,0.67]
[1756911318526,5.10201085,212.19,212.13,0.67]
[1756911318722,5.10201085,212.17,212.14,36.04]
[1756911318930,0.06,212.21,212.16,5.10201085]
[1756911319143,26.0,212.2,212.16,5.10201085]
[1756911319306,26.0,212.2,212.15,5.10201085]
[1756911319506,26.0,212.2,212.17,0.67]
[1756911319814,0.06,212.21,212.19,5.10201085]
[1756911320207,0.06,212.21,212.2,0.67]
[1756911320404,0.06,212.21,212.18,38.32]
[1756911320927,0.06,212.21,212.19,5.77201085]
[1756911321110,0.06,212.21,212.2,5.10201085]
[1756911321312,0.06,212.21,212.19,5.10201085]
[1756911321516,0.06,212.21,212.18,43.42201085]
[1756911321712,0.06,212.21,212.18,38.32]
[1756911322311,0.06,212.21,212.15,0.67]
[1756911322508,26.06,212.21,212.16,38.32]
[1756911322737,5.10201085,212.2,212.17,38.32]
[1756911323108,5.10201085,212.19,212.18,38.32]
[1756911323527,11.72050155,212.19,212.18,38.32]
[1756911324210,11.72050155,212.2,212.18,38.32]
[1756911324408,37.78050155,212.21,212.18,38.32]
[1756911324624,0.06,212.21,212.19,12.39050155]
[1756911324826,0.06,212.21,212.2,12.39050155]
[1756911325814,0.06,212.21,212.2,0.67]
[1756911326024,0.06,212.21,212.2,12.39050155]
[1756911326226,0.06,212.21,212.2,17.10303689]
[1756911327117,0.06,212.21,212.2,12.39050155]
[1756911327459,0.06,212.21,212.19,11.72050155]
[1756911327737,0.06,212.21,212.17,12.39050155]
[1756911328124,0.06,212.21,212.18,38.3]
[1756911328328,0.06,212.21,212.19,11.72050155]
[1756911328635,0.06,212.21,212.2,38.3]
[1756911329620,0.06,212.21,212.2,50.02050155]
[1756911330031,0.06,212.21,212.2,55.40303689]
[1756911333534,0.06,212.21,212.2,43.01253534]
[1756911333940,0.06,212.21,212.2,54.73303689]
[1756911334133,0.06,212.21,212.2,55.40303689]
[1756911334831,0.06,212.21,212.2,43.68253534]
[1756911335035,0.06,212.21,212.2,55.40303689]
[1756911335239,0.06,212.21,212.2,54.73303689]
[1756911335443,0.06,212.21,212.2,55.40303689]
[1756911335953,0.06,212.21,212.2,68.9986309]
[1756911336326,1e-08,212.21,212.2,69.28295404]
[1756911336941,0.06,212.24,212.21,13.87991715]
[1756911337164,0.06,212.24,212.23,16.43237074]
[1756911337337,1e-08,212.24,212.23,16.43237074]
[1756911337531,1e-08,212.24,212.23,17.10237074]
[1756911338251,1e-08,212.24,212.23,35.40888237]
[1756911338441,1e-08,212.24,212.23,21.81328836]
[1756911338649,1e-08,212.24,212.23,5.38186919]
[1756911338956,1e-08,212.24,212.23,55.36237074]
[1756911340025,1e-08,212.24,212.23,17.10237074]
[1756911340231,1e-08,212.24,212.23,55.36237074]
[1756911340740,1e-08,212.24,212.2,10.22547746]
[1756911340952,1e-08,212.24,212.23,11.72050155]
[1756911341332,1e-08,212.24,212.23,55.36237074]
[1756911342164,1e-08,212.24,212.23,43.64186919]
[1756911342363,1e-08,212.24,212.23,55.36237074]
[1756911343030,1e-08,212.24,212.23,68.95796475]
[1756911343431,1e-08,212.24,212.23,69.80771219]
[1756911344464,1e-08,212.24,212.23,31.54771219]
[1756911344650,1e-08,212.24,212.23,69.78771219]
[1756911345535,1e-08,212.24,212.23,5.38186919]
[1756911345732,1e-08,212.24,212.23,55.34237074]
[1756911345931,1e-08,212.24,212.23,43.62186919]
[1756911346152,1e-08,212.24,212.23,55.34237074]
[1756911346532,1e-08,212.24,212.23,42.93186919]
[1756911346957,1e-08,212.24,212.23,49.94050155]
[1756911347153,1e-08,212.24,212.23,54.65237074]
[1756911348148,1e-08,212.24,212.23,42.93186919]
[1756911348441,1e-08,212.24,212.23,54.65237074]
[1756911350061,1e-08,212.24,212.23,42.93186919]
[1756911350362,1e-08,212.24,212.23,54.65237074]
[1756911350565,1e-08,212.24,212.23,16.43237074]
[1756911350748,1e-08,212.24,212.23,54.65237074]
[1756911351260,1e-08,212.24,212.21,4.71223436]
[1756911351458,1e-08,212.24,212.22,46.14212742]
[1756911351959,1e-08,212.24,212.22,38.22]
[1756911352348,1e-08,212.24,212.23,38.22]
[1756911352761,0.34000001,212.24,212.23,38.22]
[1756911352960,1e-08,212.24,212.23,38.22]
[1756911353165,0.34000001,212.24,212.23,38.22]
[1756911353543,1e-08,212.24,212.23,38.22]
[1756911355344,1e-08,212.24,212.23,38.2]
[1756911357176,1e-08,212.24,212.23,43.56186919]
[1756911357868,1e-08,212.24,212.23,42.91186919]
[1756911358075,1e-08,212.24,212.23,38.2]
[1756911358571,1e-08,212.24,212.23,42.91186919]
[1756911358751,1e-08,212.24,212.23,50.83399661]
[1756911358954,1e-08,212.24,212.23,38.2]
[1756911359169,1e-08,212.24,212.23,42.91186919]
[1756911361366,1e-08,212.24,212.23,51.48399661]
[1756911361574,1e-08,212.24,212.23,50.83399661]
[1756911361977,1e-08,212.24,212.23,51.48399661]
[1756911363962,1e-08,212.24,212.23,8.57212742]
[1756911364181,1e-08,212.24,212.23,46.10212742]
[1756911364379,1e-08,212.24,212.23,51.46399661]
[1756911364756,1e-08,212.24,212.23,46.75212742]
[1756911365283,1e-08,212.24,212.23,51.46399661]
[1756911365483,1e-08,212.24,212.23,46.80058442]
[1756911365662,1e-08,212.24,212.23,42.08871523]
[1756911365859,1e-08,212.24,212.23,3.90871523]
[1756911366058,1e-08,212.24,212.23,46.80058442]
[1756911366460,1e-08,212.24,212.23,60.96160273]
[1756911367163,1e-08,212.24,212.23,61.24592587]
[1756911368076,0.06,212.27,212.26,3.25871523]
[1756911368282,0.06,212.27,212.26,41.41871523]
[1756911368480,0.06,212.27,212.26,42.06871523]
[1756911368782,0.06,212.27,212.26,55.66430924]
[1756911368985,0.06,212.29,212.28,3.25871523]
[1756911369157,0.06,212.29,212.28,38.16]
[1756911369356,0.06,212.29,212.28,42.06871523]
[1756911369557,0.06,212.29,212.28,46.72449482]
[1756911369767,0.06,212.29,212.28,51.43525419]
[1756911369965,0.06,212.29,212.28,65.59613932]
[1756911370172,1e-08,212.29,212.28,65.59613932]
[1756911370488,1e-08,212.29,212.28,65.88046246]
[1756911370865,0.06,212.33,212.29,0.28432314]
[1756911371064,0.06,212.33,212.28,77.37303775]
[1756911371065,0.06,212.33,212.31,7.91449482]
[1756911371383,0.06,212.33,212.31,46.07449482]
[1756911371573,0.06,212.33,212.31,46.05449482]
[1756911371985,0.06,212.33,212.31,38.14]
[1756911372584,0.06,212.33,212.31,50.76458855]
[1756911373275,0.06,212.33,212.31,12.62458855]
[1756911373591,0.06,212.33,212.28,0.69]
[1756911373778,0.06,212.33,212.3,7.91449482]